[Event "Early-Titled-Tuesday-Blitz-May-07-2024"]
[Site "Chess.com"]
[Date "2024.05.07"]
[Round "4"]
[White "Rhesh29"]
[Black "NM_Antelacus"]
[Result "1-0"]
[WhiteElo "2369"]
[BlackElo "2281"]
[TimeControl "180+1"]
[EndTime "8:41:07 PDT"]
[Termination "Rhesh29 won by resignation"]

1. e4 {[%clk 0:03:00.9]} 1... c5 {[%clk 0:02:59.7]} 2. Nf3 {[%clk 0:03:00.6]}
2... Nc6 {[%clk 0:02:59.4]} 3. d4 {[%clk 0:02:59]} 3... cxd4 {[%clk 0:03:00.3]}
4. Nxd4 {[%clk 0:02:59.2]} 4... Nf6 {[%clk 0:03:00.4]} 5. Nc3 {[%clk 0:02:58.1]}
5... e5 {[%clk 0:03:00.8]} 6. Ndb5 {[%clk 0:02:57.6]} 6... d6 {[%clk 0:03:00.9]}
7. Nd5 {[%clk 0:02:56.9]} 7... Nxd5 {[%clk 0:03:00.2]} 8. exd5 {[%clk 0:02:57]}
8... Nb8 {[%clk 0:03:00.4]} 9. c4 {[%clk 0:02:56.2]} 9... Be7 {[%clk 0:02:54.5]}
10. Be2 {[%clk 0:02:50]} 10... a6 {[%clk 0:02:53.9]} 11. Nc3 {[%clk 0:02:48.6]}
11... O-O {[%clk 0:02:54.4]} 12. Be3 {[%clk 0:02:37]} 12... f5 {[%clk
0:02:53.1]} 13. a3 {[%clk 0:02:27]} 13... Nd7 {[%clk 0:02:49.9]} 14. b4 {[%clk
0:02:24.9]} 14... b6 {[%clk 0:02:40.5]} 15. Qb3 {[%clk 0:02:19.7]} 15... Kh8
{[%clk 0:02:37.7]} 16. f3 {[%clk 0:02:08.3]} 16... Nf6 {[%clk 0:02:31.5]} 17.
O-O {[%clk 0:02:03.4]} 17... Bb7 {[%clk 0:02:23.9]} 18. Na4 {[%clk 0:02:02.5]}
18... Nd7 {[%clk 0:02:16.4]} 19. Nc3 {[%clk 0:01:54.3]} 19... Bf6 {[%clk
0:02:01.2]} 20. Rac1 {[%clk 0:01:48.5]} 20... Rc8 {[%clk 0:02:00.9]} 21. a4
{[%clk 0:01:48]} 21... g5 {[%clk 0:01:42.2]} 22. Bf2 {[%clk 0:01:41]} 22... Bg7
{[%clk 0:01:38.3]} 23. Rfd1 {[%clk 0:01:39.5]} 23... Ba8 {[%clk 0:01:29.3]} 24.
c5 {[%clk 0:01:26.5]} 24... bxc5 {[%clk 0:01:28.6]} 25. Bxa6 {[%clk 0:01:25.8]}
25... Rb8 {[%clk 0:01:23.2]} 26. b5 {[%clk 0:01:23.5]} 26... g4 {[%clk 0:01:15]}
27. fxg4 {[%clk 0:01:22]} 27... fxg4 {[%clk 0:01:13.9]} 28. Ne4 {[%clk
0:01:21.8]} 28... Nf6 {[%clk 0:01:12.2]} 29. Ng5 {[%clk 0:01:14.7]} 29... Qa5
{[%clk 0:01:04.9]} 30. Qc4 {[%clk 0:01:03.2]} 30... h5 {[%clk 0:00:49.8]} 31.
Ne6 {[%clk 0:01:00.3]} 31... Rf7 {[%clk 0:00:46.6]} 32. Be1 {[%clk 0:00:57.5]}
32... Nd7 {[%clk 0:00:42.8]} 33. Bxa5 {[%clk 0:00:55.8]} 1-0

[Event "Early-Titled-Tuesday-Blitz-May-07-2024"]
[Site "Chess.com"]
[Date "2024.05.07"]
[Round "4"]
[White "akanga001"]
[Black "margarita_2703"]
[Result "1-0"]
[WhiteElo "2170"]
[BlackElo "2307"]
[TimeControl "180+1"]
[EndTime "8:41:08 PDT"]
[Termination "akanga001 won by resignation"]

1. d4 {[%clk 0:02:54.6]} 1... d5 {[%clk 0:03:00]} 2. c4 {[%clk 0:02:53.2]} 2...
c6 {[%clk 0:02:54.7]} 3. Nc3 {[%clk 0:02:52.2]} 3... e6 {[%clk 0:02:50.9]} 4. e3
{[%clk 0:02:43.5]} 4... f5 {[%clk 0:02:49.4]} 5. Nf3 {[%clk 0:02:43.3]} 5... Bd6
{[%clk 0:02:46.6]} 6. g3 {[%clk 0:02:43.2]} 6... Nf6 {[%clk 0:02:45.8]} 7. Qc2
{[%clk 0:02:40.6]} 7... O-O {[%clk 0:02:46]} 8. b3 {[%clk 0:02:39.8]} 8... a6
{[%clk 0:02:45]} 9. Bb2 {[%clk 0:02:39.7]} 9... Bd7 {[%clk 0:02:44.9]} 10. Bd3
{[%clk 0:02:36.8]} 10... Be8 {[%clk 0:02:45.2]} 11. O-O {[%clk 0:02:35.7]} 11...
Bh5 {[%clk 0:02:45]} 12. Ne5 {[%clk 0:02:35.5]} 12... Nbd7 {[%clk 0:02:44.7]}
13. Ne2 {[%clk 0:02:32]} 13... Bxe2 {[%clk 0:02:43.9]} 14. Bxe2 {[%clk
0:02:29.1]} 14... Rc8 {[%clk 0:02:43.6]} 15. Rac1 {[%clk 0:02:21.7]} 15... Qe7
{[%clk 0:02:39]} 16. f3 {[%clk 0:02:16.9]} 16... Rc7 {[%clk 0:02:36.7]} 17. Bd3
{[%clk 0:02:15.5]} 17... Rfc8 {[%clk 0:02:37]} 18. Qe2 {[%clk 0:02:15.3]} 18...
g6 {[%clk 0:02:31.4]} 19. e4 {[%clk 0:02:11.1]} 19... fxe4 {[%clk 0:02:29.8]}
20. fxe4 {[%clk 0:02:10.9]} 20... dxe4 {[%clk 0:02:29.8]} 21. Bxe4 {[%clk
0:02:10.1]} 21... Bxe5 {[%clk 0:02:30.7]} 22. dxe5 {[%clk 0:02:08.9]} 22... Nxe4
{[%clk 0:02:31.6]} 23. Qxe4 {[%clk 0:02:08.5]} 23... Nc5 {[%clk 0:02:31.3]} 24.
Qe3 {[%clk 0:02:02.4]} 24... Nd7 {[%clk 0:02:31.1]} 25. c5 {[%clk 0:01:53]}
25... Rf8 {[%clk 0:02:26.6]} 26. Rfd1 {[%clk 0:01:52.4]} 26... Rf7 {[%clk
0:02:23.1]} 27. Rd6 {[%clk 0:01:51.9]} 27... Nf8 {[%clk 0:02:23]} 28. Rcd1
{[%clk 0:01:49.9]} 28... Qe8 {[%clk 0:02:20.5]} 29. Rd8 {[%clk 0:01:48]} 29...
Qe7 {[%clk 0:02:20.6]} 30. R1d6 {[%clk 0:01:41.7]} 30... Kg7 {[%clk 0:02:16.9]}
31. Bc1 {[%clk 0:01:39.3]} 31... Kg8 {[%clk 0:02:08.5]} 32. Qh6 {[%clk
0:01:38.7]} 32... Rg7 {[%clk 0:02:08.7]} 33. Bg5 {[%clk 0:01:36.6]} 33... Qf7
{[%clk 0:02:08.6]} 34. Bf6 {[%clk 0:01:33.1]} 34... a5 {[%clk 0:02:06.9]} 35.
Bxg7 {[%clk 0:01:07]} 35... Qxg7 {[%clk 0:02:07.8]} 36. Qxg7+ {[%clk 0:01:05.8]}
36... Kxg7 {[%clk 0:02:08.7]} 37. Re8 {[%clk 0:01:02.1]} 37... Rf7 {[%clk
0:02:07.2]} 38. Rdd8 {[%clk 0:01:00.6]} 38... Rf5 {[%clk 0:02:06.6]} 39. Kg2
{[%clk 0:00:57.2]} 39... g5 {[%clk 0:02:05.6]} 40. Re7+ {[%clk 0:00:55.1]} 40...
Rf7 {[%clk 0:02:05.6]} 41. Rxf7+ {[%clk 0:00:52.3]} 41... Kxf7 {[%clk
0:02:06.5]} 42. Rb8 {[%clk 0:00:51.9]} 42... Kg6 {[%clk 0:02:06.7]} 43. Rxb7
{[%clk 0:00:51.9]} 43... h5 {[%clk 0:02:06.6]} 44. Rc7 {[%clk 0:00:51.5]} 44...
g4 {[%clk 0:02:04.4]} 45. Rxc6 {[%clk 0:00:51.3]} 45... Kf5 {[%clk 0:02:05.3]}
46. Rc8 {[%clk 0:00:50.5]} 46... Nd7 {[%clk 0:02:05]} 47. c6 {[%clk 0:00:50.9]}
47... Nb6 {[%clk 0:02:04.5]} 48. Rb8 {[%clk 0:00:48.8]} 48... Nd5 {[%clk
0:02:04.7]} 49. Rd8 {[%clk 0:00:46.8]} 49... Kxe5 {[%clk 0:02:04.5]} 50. Rd7
{[%clk 0:00:36.9]} 50... Kf6 {[%clk 0:02:00.6]} 51. c7 {[%clk 0:00:36]} 51...
Nxc7 {[%clk 0:02:00.5]} 52. Rxc7 {[%clk 0:00:35.7]} 52... Ke5 {[%clk 0:02:01.4]}
53. Ra7 {[%clk 0:00:35.4]} 53... Kd4 {[%clk 0:02:02.3]} 54. Rxa5 {[%clk
0:00:35.4]} 54... e5 {[%clk 0:02:03.2]} 55. Ra8 {[%clk 0:00:32.2]} 55... e4
{[%clk 0:02:04.1]} 56. Re8 {[%clk 0:00:31.6]} 56... Kd3 {[%clk 0:02:05]} 57. Kf1
{[%clk 0:00:32]} 57... e3 {[%clk 0:02:05.9]} 58. Ke1 {[%clk 0:00:31.9]} 1-0

[Event "Early-Titled-Tuesday-Blitz-May-07-2024"]
[Site "Chess.com"]
[Date "2024.05.07"]
[Round "4"]
[White "sofaceindisguise"]
[Black "Njal28"]
[Result "0-1"]
[WhiteElo "2743"]
[BlackElo "3120"]
[TimeControl "180+1"]
[EndTime "8:41:13 PDT"]
[Termination "Njal28 won by resignation"]

1. d4 {[%clk 0:03:00]} 1... c6 {[%clk 0:03:00.9]} 2. c4 {[%clk 0:02:59.8]} 2...
Nf6 {[%clk 0:03:01.2]} 3. Nf3 {[%clk 0:03:00.5]} 3... d5 {[%clk 0:03:01.3]} 4.
e3 {[%clk 0:03:01.4]} 4... e6 {[%clk 0:02:59.4]} 5. Nbd2 {[%clk 0:03:00.7]} 5...
Nbd7 {[%clk 0:02:53.1]} 6. Bd3 {[%clk 0:03:01.1]} 6... Be7 {[%clk 0:02:47.3]} 7.
O-O {[%clk 0:03:00.8]} 7... O-O {[%clk 0:02:47.5]} 8. b3 {[%clk 0:03:00.9]} 8...
b6 {[%clk 0:02:47.2]} 9. Bb2 {[%clk 0:03:00.8]} 9... Bb7 {[%clk 0:02:47.3]} 10.
Qe2 {[%clk 0:03:01.3]} 10... c5 {[%clk 0:02:47]} 11. cxd5 {[%clk 0:02:54]} 11...
Nxd5 {[%clk 0:02:47.9]} 12. Rac1 {[%clk 0:02:53.6]} 12... Rc8 {[%clk 0:02:47.7]}
13. Rfd1 {[%clk 0:02:51.7]} 13... Rc7 {[%clk 0:02:46.8]} 14. dxc5 {[%clk
0:02:37.3]} 14... Nxc5 {[%clk 0:02:46.7]} 15. Bc4 {[%clk 0:02:36.9]} 15... Qa8
{[%clk 0:02:44.8]} 16. Be5 {[%clk 0:02:08.2]} 16... Rcc8 {[%clk 0:02:43.5]} 17.
Nf1 {[%clk 0:01:58.8]} 17... Rfd8 {[%clk 0:02:39.3]} 18. Ng3 {[%clk 0:01:58.9]}
18... Nd7 {[%clk 0:02:11.6]} 19. Bb2 {[%clk 0:01:51.3]} 19... Bf6 {[%clk
0:02:09]} 20. Bxf6 {[%clk 0:01:49]} 20... N7xf6 {[%clk 0:02:09.9]} 21. Ba6
{[%clk 0:01:41.1]} 21... h6 {[%clk 0:01:41.3]} 22. Bxb7 {[%clk 0:01:40]} 22...
Qxb7 {[%clk 0:01:41.8]} 23. Qb2 {[%clk 0:01:40.5]} 23... Nb4 {[%clk 0:01:39.6]}
24. a3 {[%clk 0:01:04.8]} 24... Rxd1+ {[%clk 0:01:28.1]} 25. Rxd1 {[%clk
0:01:03.3]} 25... Nbd5 {[%clk 0:01:29]} 26. Ne2 {[%clk 0:00:57]} 26... Ne4
{[%clk 0:01:26.7]} 27. Rc1 {[%clk 0:00:55.1]} 27... Rxc1+ {[%clk 0:01:24.8]} 28.
Qxc1 {[%clk 0:00:54.7]} 28... Qa6 {[%clk 0:01:25.6]} 29. Ned4 {[%clk 0:00:32]}
29... Ndc3 {[%clk 0:01:14.4]} 30. h3 {[%clk 0:00:28.1]} 30... Qe2 {[%clk
0:01:03.4]} 31. Qxc3 {[%clk 0:00:24.1]} 31... Qxf2+ {[%clk 0:01:03.2]} 0-1

[Event "Early-Titled-Tuesday-Blitz-May-07-2024"]
[Site "Chess.com"]
[Date "2024.05.07"]
[Round "4"]
[White "JJDAREK"]
[Black "Irishchessman16"]
[Result "0-1"]
[WhiteElo "2366"]
[BlackElo "2545"]
[TimeControl "180+1"]
[EndTime "8:41:20 PDT"]
[Termination "Irishchessman16 won by checkmate"]

1. d4 {[%clk 0:03:00.9]} 1... f5 {[%clk 0:02:55.9]} 2. Nf3 {[%clk 0:03:00]} 2...
Nf6 {[%clk 0:02:55.7]} 3. Bf4 {[%clk 0:03:00.2]} 3... e6 {[%clk 0:02:51.7]} 4.
e3 {[%clk 0:03:00.3]} 4... Be7 {[%clk 0:02:51.7]} 5. h3 {[%clk 0:02:59.5]} 5...
O-O {[%clk 0:02:51.7]} 6. c4 {[%clk 0:02:58.3]} 6... d6 {[%clk 0:02:50.6]} 7.
Nc3 {[%clk 0:02:56.8]} 7... Nc6 {[%clk 0:02:50.6]} 8. Be2 {[%clk 0:02:54.3]}
8... Qe8 {[%clk 0:02:50.3]} 9. O-O {[%clk 0:02:51]} 9... Bd8 {[%clk 0:02:50.4]}
10. Bh2 {[%clk 0:02:48]} 10... e5 {[%clk 0:02:45.3]} 11. dxe5 {[%clk 0:02:38.6]}
11... dxe5 {[%clk 0:02:44.5]} 12. c5 {[%clk 0:02:30.3]} 12... Kh8 {[%clk
0:02:40.6]} 13. a3 {[%clk 0:02:29]} 13... e4 {[%clk 0:02:22]} 14. Nd4 {[%clk
0:02:27.1]} 14... Ne5 {[%clk 0:02:21.3]} 15. b4 {[%clk 0:02:22.5]} 15... c6
{[%clk 0:02:21]} 16. Qb3 {[%clk 0:02:18.8]} 16... Bc7 {[%clk 0:02:20.3]} 17. b5
{[%clk 0:01:53.3]} 17... g5 {[%clk 0:02:08.4]} 18. bxc6 {[%clk 0:01:41.7]} 18...
bxc6 {[%clk 0:02:09.3]} 19. Rab1 {[%clk 0:01:27.8]} 19... f4 {[%clk 0:01:59.4]}
20. exf4 {[%clk 0:01:21.4]} 20... gxf4 {[%clk 0:01:58.9]} 21. Bxf4 {[%clk
0:01:10.4]} 21... Bxh3 {[%clk 0:01:41.1]} 22. gxh3 {[%clk 0:00:33.5]} 22... Qd7
{[%clk 0:01:19.7]} 23. Nxe4 {[%clk 0:00:19.8]} 23... Qxd4 {[%clk 0:00:58]} 24.
Nxf6 {[%clk 0:00:13]} 24... Qxf4 {[%clk 0:00:57.2]} 25. Nh5 {[%clk 0:00:10.9]}
25... Nf3+ {[%clk 0:00:55.9]} 26. Bxf3 {[%clk 0:00:10.1]} 26... Qh2# {[%clk
0:00:55.7]} 0-1

[Event "Early-Titled-Tuesday-Blitz-May-07-2024"]
[Site "Chess.com"]
[Date "2024.05.07"]
[Round "4"]
[White "LeoLV10"]
[Black "Alina_Gumerovna"]
[Result "1-0"]
[WhiteElo "2477"]
[BlackElo "2178"]
[TimeControl "180+1"]
[EndTime "8:41:20 PDT"]
[Termination "LeoLV10 won on time"]

1. e4 {[%clk 0:02:53.3]} 1... e5 {[%clk 0:02:59.4]} 2. Nf3 {[%clk 0:02:53.4]}
2... Nf6 {[%clk 0:02:58.7]} 3. d4 {[%clk 0:02:50.8]} 3... Nxe4 {[%clk
0:02:57.4]} 4. Bd3 {[%clk 0:02:50.8]} 4... d5 {[%clk 0:02:55.4]} 5. Nxe5 {[%clk
0:02:50.9]} 5... Nd7 {[%clk 0:02:55.3]} 6. Nxd7 {[%clk 0:02:51.4]} 6... Bxd7
{[%clk 0:02:55.1]} 7. O-O {[%clk 0:02:51.9]} 7... Bd6 {[%clk 0:02:50.6]} 8. Nc3
{[%clk 0:02:52.5]} 8... Nxc3 {[%clk 0:02:48.2]} 9. bxc3 {[%clk 0:02:53.4]} 9...
O-O {[%clk 0:02:48.2]} 10. Qh5 {[%clk 0:02:53.3]} 10... f5 {[%clk 0:02:47.3]}
11. Bg5 {[%clk 0:02:53.2]} 11... Qe8 {[%clk 0:02:47]} 12. Qf3 {[%clk 0:02:53.2]}
12... c6 {[%clk 0:02:41.7]} 13. Rfe1 {[%clk 0:02:50.6]} 13... Qg6 {[%clk
0:02:37.7]} 14. Bf4 {[%clk 0:02:37.8]} 14... Rae8 {[%clk 0:01:49.4]} 15. h3
{[%clk 0:02:35.2]} 15... h6 {[%clk 0:01:06.3]} 16. Rab1 {[%clk 0:02:23.3]} 16...
b6 {[%clk 0:01:06]} 17. c4 {[%clk 0:02:10.7]} 17... Bxf4 {[%clk 0:00:40.3]} 18.
Qxf4 {[%clk 0:02:08.7]} 18... Be6 {[%clk 0:00:40.5]} 19. c5 {[%clk 0:02:05.5]}
19... b5 {[%clk 0:00:35.9]} 20. a4 {[%clk 0:02:01.3]} 20... a6 {[%clk
0:00:26.8]} 21. axb5 {[%clk 0:02:01.4]} 21... axb5 {[%clk 0:00:27.7]} 22. Qc7
{[%clk 0:02:00.1]} 22... Rc8 {[%clk 0:00:18.3]} 23. Qd6 {[%clk 0:01:52]} 23...
Bf7 {[%clk 0:00:16.8]} 24. Qd7 {[%clk 0:01:49.3]} 24... Qf6 {[%clk 0:00:03.4]}
25. c3 {[%clk 0:01:46.1]} 25... f4 {[%clk 0:00:02.9]} 26. f3 {[%clk 0:01:32]}
26... Rfd8 {[%clk 0:00:02.6]} 27. Qg4 {[%clk 0:01:27.7]} 27... Re8 {[%clk
0:00:01.3]} 28. Kh2 {[%clk 0:01:11.6]} 1-0

[Event "Early-Titled-Tuesday-Blitz-May-07-2024"]
[Site "Chess.com"]
[Date "2024.05.07"]
[Round "4"]
[White "besarquis"]
[Black "pfalcon1949"]
[Result "1-0"]
[WhiteElo "2273"]
[BlackElo "1938"]
[TimeControl "180+1"]
[EndTime "8:41:21 PDT"]
[Termination "besarquis won by resignation"]

1. e4 {[%clk 0:02:57.9]} 1... e6 {[%clk 0:02:59.8]} 2. d4 {[%clk 0:02:56.7]}
2... d5 {[%clk 0:02:59.8]} 3. exd5 {[%clk 0:02:56.3]} 3... exd5 {[%clk
0:02:59.4]} 4. Nf3 {[%clk 0:02:56.9]} 4... Nf6 {[%clk 0:02:58.4]} 5. Bd3 {[%clk
0:02:56.7]} 5... c5 {[%clk 0:02:57.3]} 6. c3 {[%clk 0:02:51.6]} 6... c4 {[%clk
0:02:57.3]} 7. Bc2 {[%clk 0:02:48.8]} 7... Nc6 {[%clk 0:02:57.2]} 8. O-O {[%clk
0:02:48.1]} 8... Be7 {[%clk 0:02:55.5]} 9. h3 {[%clk 0:02:42.3]} 9... O-O {[%clk
0:02:54.6]} 10. Re1 {[%clk 0:02:41.1]} 10... h6 {[%clk 0:02:48.4]} 11. Bf4
{[%clk 0:02:35]} 11... Be6 {[%clk 0:02:46.2]} 12. b3 {[%clk 0:02:33]} 12... cxb3
{[%clk 0:02:43.8]} 13. axb3 {[%clk 0:02:31.1]} 13... Rc8 {[%clk 0:02:44.7]} 14.
Nbd2 {[%clk 0:02:20.6]} 14... a6 {[%clk 0:02:43.4]} 15. b4 {[%clk 0:02:14.5]}
15... Bd6 {[%clk 0:02:37]} 16. Ne5 {[%clk 0:02:05]} 16... Bxe5 {[%clk
0:02:32.6]} 17. dxe5 {[%clk 0:02:02.6]} 17... Nd7 {[%clk 0:02:30.7]} 18. Nb3
{[%clk 0:01:59.2]} 18... Qc7 {[%clk 0:02:19.3]} 19. Qd3 {[%clk 0:01:58.3]} 19...
g6 {[%clk 0:02:14.1]} 20. Bxh6 {[%clk 0:01:46.5]} 20... Rfe8 {[%clk 0:02:13.2]}
21. Qg3 {[%clk 0:01:36.5]} 21... Ndxe5 {[%clk 0:02:04.9]} 22. Bf4 {[%clk
0:01:33.6]} 22... Bd7 {[%clk 0:01:49.6]} 23. Nc5 {[%clk 0:01:24.2]} 23... Be6
{[%clk 0:00:42.1]} 24. Bxe5 {[%clk 0:01:11]} 24... Nxe5 {[%clk 0:00:38.2]} 25.
Qxe5 {[%clk 0:01:00.9]} 25... Bxh3 {[%clk 0:00:13.1]} 26. Qxc7 {[%clk
0:00:56.7]} 26... Rxe1+ {[%clk 0:00:12.8]} 27. Rxe1 {[%clk 0:00:56.7]} 27...
Rxc7 {[%clk 0:00:13.1]} 28. gxh3 {[%clk 0:00:56.9]} 1-0

[Event "Early-Titled-Tuesday-Blitz-May-07-2024"]
[Site "Chess.com"]
[Date "2024.05.07"]
[Round "4"]
[White "cthulhuuu"]
[Black "GothamChess"]
[Result "0-1"]
[WhiteElo "2510"]
[BlackElo "2723"]
[TimeControl "180+1"]
[EndTime "8:41:24 PDT"]
[Termination "GothamChess won by resignation"]

1. e4 {[%clk 0:02:59.4]} 1... d5 {[%clk 0:02:59.7]} 2. exd5 {[%clk 0:02:59.5]}
2... Qxd5 {[%clk 0:03:00.6]} 3. d3 {[%clk 0:02:59.1]} 3... Nc6 {[%clk
0:02:56.7]} 4. Nc3 {[%clk 0:02:52.8]} 4... Qe5+ {[%clk 0:02:50.1]} 5. Be2 {[%clk
0:02:51.8]} 5... Nd4 {[%clk 0:02:46.3]} 6. Be3 {[%clk 0:02:51.3]} 6... Nxe2
{[%clk 0:02:45.4]} 7. Qxe2 {[%clk 0:02:51.8]} 7... Nf6 {[%clk 0:02:42.9]} 8. Nf3
{[%clk 0:02:52]} 8... Qh5 {[%clk 0:02:41.2]} 9. O-O-O {[%clk 0:02:51.8]} 9...
Bg4 {[%clk 0:02:37.7]} 10. h3 {[%clk 0:02:49.1]} 10... Bxf3 {[%clk 0:02:37.4]}
11. gxf3 {[%clk 0:02:44.6]} 11... e6 {[%clk 0:02:37.7]} 12. Rdg1 {[%clk
0:02:31.5]} 12... h6 {[%clk 0:02:37.4]} 13. Bf4 {[%clk 0:02:21]} 13... O-O-O
{[%clk 0:02:31.3]} 14. Be5 {[%clk 0:01:55.2]} 14... Qf5 {[%clk 0:02:20.5]} 15.
d4 {[%clk 0:01:23.6]} 15... a6 {[%clk 0:01:59.4]} 16. Ne4 {[%clk 0:01:06.5]}
16... Ne8 {[%clk 0:01:49.3]} 17. Qc4 {[%clk 0:00:54.1]} 17... Qxf3 {[%clk
0:01:43]} 18. Nc5 {[%clk 0:00:37.3]} 18... Qc6 {[%clk 0:01:19.6]} 19. Qe2 {[%clk
0:00:11.6]} 19... Bxc5 {[%clk 0:01:09]} 20. dxc5 {[%clk 0:00:12.4]} 20... f6
{[%clk 0:01:09.1]} 21. Bc3 {[%clk 0:00:12.4]} 21... e5 {[%clk 0:01:06.6]} 22. f3
{[%clk 0:00:11.6]} 22... Qxc5 {[%clk 0:01:05.8]} 23. Rd1 {[%clk 0:00:05.9]}
23... Rxd1+ {[%clk 0:01:02]} 24. Rxd1 {[%clk 0:00:06.8]} 24... Nd6 {[%clk
0:01:02.5]} 25. Rg1 {[%clk 0:00:07.3]} 25... g5 {[%clk 0:01:01.9]} 26. Qd3
{[%clk 0:00:06.8]} 26... Qxg1+ {[%clk 0:00:59.2]} 0-1

[Event "Early-Titled-Tuesday-Blitz-May-07-2024"]
[Site "Chess.com"]
[Date "2024.05.07"]
[Round "4"]
[White "chess_sharparchitect"]
[Black "ImportedItalianMaple"]
[Result "0-1"]
[WhiteElo "2270"]
[BlackElo "2495"]
[TimeControl "180+1"]
[EndTime "8:41:26 PDT"]
[Termination "ImportedItalianMaple won on time"]

1. c4 {[%clk 0:03:00.9]} 1... g6 {[%clk 0:03:00.9]} 2. Nc3 {[%clk 0:02:59]} 2...
Bg7 {[%clk 0:03:01.8]} 3. d4 {[%clk 0:02:56.7]} 3... d6 {[%clk 0:03:02]} 4. e4
{[%clk 0:02:56.5]} 4... e5 {[%clk 0:02:59.4]} 5. d5 {[%clk 0:02:53]} 5... f5
{[%clk 0:02:54.3]} 6. exf5 {[%clk 0:02:38.7]} 6... Bxf5 {[%clk 0:02:51.3]} 7. g4
{[%clk 0:02:13.8]} 7... Bd7 {[%clk 0:02:48.4]} 8. Bd3 {[%clk 0:02:10.8]} 8...
Nf6 {[%clk 0:02:46.5]} 9. h3 {[%clk 0:01:59.6]} 9... O-O {[%clk 0:02:43.7]} 10.
Bg5 {[%clk 0:01:57.4]} 10... Na6 {[%clk 0:02:37.6]} 11. Qd2 {[%clk 0:01:52.2]}
11... Nc5 {[%clk 0:02:35.4]} 12. Bc2 {[%clk 0:01:51.4]} 12... a5 {[%clk
0:02:31.5]} 13. O-O-O {[%clk 0:01:48.8]} 13... a4 {[%clk 0:02:26.7]} 14. Nge2
{[%clk 0:01:41]} 14... Qb8 {[%clk 0:02:23.5]} 15. Ng3 {[%clk 0:01:32.7]} 15...
b5 {[%clk 0:02:19.8]} 16. cxb5 {[%clk 0:01:25.5]} 16... Bxb5 {[%clk 0:02:20.7]}
17. Bxf6 {[%clk 0:01:21]} 17... Rxf6 {[%clk 0:02:17.7]} 18. Nge4 {[%clk
0:01:20.7]} 18... Nxe4 {[%clk 0:02:13.7]} 19. Nxe4 {[%clk 0:01:18.1]} 19... Rf4
{[%clk 0:02:13.9]} 20. g5 {[%clk 0:01:06]} 20... Qb6 {[%clk 0:01:52]} 21. h4
{[%clk 0:00:29.3]} 21... Rb8 {[%clk 0:01:43.1]} 22. Qc3 {[%clk 0:00:29.4]} 22...
Be2 {[%clk 0:01:31.3]} 23. Rd2 {[%clk 0:00:26.5]} 23... Rf3 {[%clk 0:01:24.4]}
24. Bd3 {[%clk 0:00:11.1]} 24... Bxd3 {[%clk 0:01:23.7]} 25. Rxd3 {[%clk
0:00:10.5]} 25... Rxd3 {[%clk 0:01:24]} 26. Qxd3 {[%clk 0:00:10.8]} 26... Qxb2+
{[%clk 0:01:24.6]} 27. Kd1 {[%clk 0:00:09.8]} 27... Qb1+ {[%clk 0:01:25.1]} 28.
Ke2 {[%clk 0:00:08]} 28... Rb2+ {[%clk 0:01:19.3]} 29. Ke3 {[%clk 0:00:06.9]}
29... Qxh1 {[%clk 0:01:18.2]} 30. Nf6+ {[%clk 0:00:00.9]} 30... Bxf6 {[%clk
0:01:16.8]} 31. gxf6 {[%clk 0:00:01.5]} 31... Qe1+ {[%clk 0:01:13.5]} 32. Kf3
{[%clk 0:00:00.3]} 32... Rxf2+ {[%clk 0:01:11.5]} 0-1

[Event "Early-Titled-Tuesday-Blitz-May-07-2024"]
[Site "Chess.com"]
[Date "2024.05.07"]
[Round "4"]
[White "dennisodessa"]
[Black "VirtualCoach"]
[Result "1-0"]
[WhiteElo "2539"]
[BlackElo "2137"]
[TimeControl "180+1"]
[EndTime "8:41:28 PDT"]
[Termination "dennisodessa won by resignation"]

1. d4 {[%clk 0:02:56.9]} 1... Nf6 {[%clk 0:02:58.9]} 2. c4 {[%clk 0:02:57]} 2...
e6 {[%clk 0:02:55.9]} 3. Nc3 {[%clk 0:02:57.1]} 3... Bb4 {[%clk 0:02:55.8]} 4.
Qc2 {[%clk 0:02:57.7]} 4... O-O {[%clk 0:02:54.3]} 5. a3 {[%clk 0:02:57.2]} 5...
Bxc3+ {[%clk 0:02:53.3]} 6. Qxc3 {[%clk 0:02:58.1]} 6... d5 {[%clk 0:02:53.2]}
7. Bg5 {[%clk 0:02:57.3]} 7... h6 {[%clk 0:02:52]} 8. Bxf6 {[%clk 0:02:56.9]}
8... Qxf6 {[%clk 0:02:49.5]} 9. e3 {[%clk 0:02:56.9]} 9... c6 {[%clk 0:02:48.7]}
10. Nf3 {[%clk 0:02:56.2]} 10... Nd7 {[%clk 0:02:47.2]} 11. Be2 {[%clk
0:02:55.4]} 11... Re8 {[%clk 0:02:46]} 12. Rd1 {[%clk 0:02:55.2]} 12... dxc4
{[%clk 0:02:35.7]} 13. Bxc4 {[%clk 0:02:52.8]} 13... b5 {[%clk 0:02:33.2]} 14.
Be2 {[%clk 0:02:47.1]} 14... Bb7 {[%clk 0:02:30.9]} 15. O-O {[%clk 0:02:43]}
15... a6 {[%clk 0:02:28.8]} 16. Ne5 {[%clk 0:02:27.5]} 16... Nb6 {[%clk
0:02:20.2]} 17. Bf3 {[%clk 0:02:22.8]} 17... Nd5 {[%clk 0:02:13.4]} 18. Qc5
{[%clk 0:02:21.7]} 18... Rac8 {[%clk 0:02:08]} 19. Rc1 {[%clk 0:02:21]} 19...
Qe7 {[%clk 0:01:55.1]} 20. Rc2 {[%clk 0:01:56.3]} 20... f6 {[%clk 0:01:28.2]}
21. Nd3 {[%clk 0:01:53.2]} 21... e5 {[%clk 0:01:21.5]} 22. dxe5 {[%clk
0:01:04.2]} 22... fxe5 {[%clk 0:00:02.5]} 23. Bh5 {[%clk 0:00:59.4]} 23... Qxc5
{[%clk 0:00:02.4]} 24. Nxc5 {[%clk 0:01:00.3]} 24... Red8 {[%clk 0:00:02.6]} 25.
Nxb7 {[%clk 0:00:58.8]} 1-0